[Event "*** SCC Grand Prix: Titled Tuesday Blitz"]
[Site "Chess.com"]
[Date "2020.09.29"]
[Round "4"]
[White "winniethepooh04"]
[Black "geordie_derraugh"]
[Result "0-1"]
[WhiteElo "2203"]
[BlackElo "2399"]
[TimeControl "180+1"]
[EndTime "10:40:03 PDT"]
[Termination "geordie_derraugh won by resignation"]

1. d4 {[%clk 0:03:00.9]} 1... Nf6 {[%clk 0:02:59.3]} 2. Nf3 {[%clk 0:02:59.4]}
2... e6 {[%clk 0:02:56.8]} 3. Bf4 {[%clk 0:02:59]} 3... c5 {[%clk 0:02:54.6]} 4.
e3 {[%clk 0:02:59.6]} 4... cxd4 {[%clk 0:02:54.3]} 5. exd4 {[%clk 0:02:59.4]}
5... d6 {[%clk 0:02:54.3]} 6. c3 {[%clk 0:02:59.5]} 6... Be7 {[%clk 0:02:54.5]}
7. h3 {[%clk 0:02:59.7]} 7... O-O {[%clk 0:02:54.8]} 8. Bd3 {[%clk 0:02:59.3]}
8... Qb6 {[%clk 0:02:51.9]} 9. Qb3 {[%clk 0:02:58.5]} 9... Nbd7 {[%clk
0:02:48.6]} 10. O-O {[%clk 0:02:56.8]} 10... Nd5 {[%clk 0:02:43.3]} 11. Bh2
{[%clk 0:02:53]} 11... Rd8 {[%clk 0:02:33]} 12. Nbd2 {[%clk 0:02:51.6]} 12...
N7f6 {[%clk 0:02:29.2]} 13. Rfe1 {[%clk 0:02:50]} 13... Nh5 {[%clk 0:02:17.7]}
14. Bf1 {[%clk 0:02:45.2]} 14... Nhf4 {[%clk 0:02:09.1]} 15. Nc4 {[%clk
0:02:42.1]} 15... Qc7 {[%clk 0:02:06.1]} 16. Ne3 {[%clk 0:02:39.8]} 16... Bd7
{[%clk 0:01:56.5]} 17. Nxd5 {[%clk 0:02:33.7]} 17... Nxd5 {[%clk 0:01:56.4]} 18.
Rac1 {[%clk 0:02:29.1]} 18... Bc6 {[%clk 0:01:55.8]} 19. Nd2 {[%clk 0:02:26.4]}
19... Bg5 {[%clk 0:01:48.1]} 20. Rcd1 {[%clk 0:02:24.2]} 20... Bf4 {[%clk
0:01:39.5]} 21. Bxf4 {[%clk 0:02:17.3]} 21... Nxf4 {[%clk 0:01:39.7]} 22. Nc4
{[%clk 0:02:17]} 22... Bd5 {[%clk 0:01:32.6]} 23. Qb4 {[%clk 0:02:07.5]} 23...
b6 {[%clk 0:00:38.8]} 24. Ne3 {[%clk 0:02:04.3]} 24... Bb7 {[%clk 0:00:37.1]}
25. Qb3 {[%clk 0:02:01.6]} 25... Qc6 {[%clk 0:00:35]} 26. Kh2 {[%clk 0:01:51.8]}
26... Qe4 {[%clk 0:00:26.2]} 27. d5 {[%clk 0:01:44.8]} 27... Qg6 {[%clk
0:00:14.5]} 28. c4 {[%clk 0:01:29.5]} 28... Rac8 {[%clk 0:00:14.3]} 29. a4
{[%clk 0:01:22.5]} 29... Rc5 {[%clk 0:00:14.3]} 30. dxe6 {[%clk 0:01:19.5]}
30... fxe6 {[%clk 0:00:13.9]} 31. Rd4 {[%clk 0:01:12.4]} 31... e5 {[%clk
0:00:10.8]} 32. Rdd1 {[%clk 0:01:08.5]} 32... Rf8 {[%clk 0:00:10]} 33. Nd5
{[%clk 0:01:02.3]} 33... Nxd5 {[%clk 0:00:08.8]} 34. cxd5 {[%clk 0:01:03.2]}
34... Rxf2 {[%clk 0:00:08.8]} 35. Qe3 {[%clk 0:00:53.6]} 35... Rcc2 {[%clk
0:00:07.4]} 36. Qg3 {[%clk 0:00:46.9]} 36... Qf6 {[%clk 0:00:06.7]} 37. Bd3
{[%clk 0:00:41.7]} 37... Rxb2 {[%clk 0:00:05.5]} 38. Rf1 {[%clk 0:00:40.3]}
38... Rxg2+ {[%clk 0:00:04.7]} 39. Qxg2 {[%clk 0:00:40.1]} 39... Rxg2+ {[%clk
0:00:05.6]} 40. Kxg2 {[%clk 0:00:40.8]} 40... Bxd5+ {[%clk 0:00:06]} 41. Kh2
{[%clk 0:00:39.6]} 41... Qg5 {[%clk 0:00:05.2]} 42. Bxh7+ {[%clk 0:00:34.2]}
42... Kxh7 {[%clk 0:00:03.8]} 43. Rxd5 {[%clk 0:00:34.8]} 43... Qe3 {[%clk
0:00:03.1]} 44. Rg1 {[%clk 0:00:26.1]} 44... Qe2+ {[%clk 0:00:02.3]} 45. Rg2
{[%clk 0:00:25.8]} 45... Qf3 {[%clk 0:00:01.9]} 46. Rxd6 {[%clk 0:00:25.8]}
46... e4 {[%clk 0:00:02.5]} 47. Rd7 {[%clk 0:00:25.1]} 47... Qf4+ {[%clk
0:00:02.5]} 48. Kh1 {[%clk 0:00:24.5]} 48... Qf1+ {[%clk 0:00:02.4]} 49. Kh2
{[%clk 0:00:24.9]} 49... Qf6 {[%clk 0:00:03.3]} 50. Rdd2 {[%clk 0:00:20.9]}
50... Qe5+ {[%clk 0:00:03.4]} 51. Kh1 {[%clk 0:00:20.2]} 51... e3 {[%clk
0:00:04.3]} 52. Rde2 {[%clk 0:00:20]} 52... Qa1+ {[%clk 0:00:04.4]} 53. Kh2
{[%clk 0:00:20.1]} 53... Qxa4 {[%clk 0:00:05.2]} 54. Rxe3 {[%clk 0:00:20.2]}
54... Qf4+ {[%clk 0:00:05.5]} 55. Reg3 {[%clk 0:00:20.1]} 55... a5 {[%clk
0:00:06.3]} 56. Kh1 {[%clk 0:00:19]} 56... Qe5 {[%clk 0:00:06.3]} 57. Rb3 {[%clk
0:00:16.3]} 57... b5 {[%clk 0:00:06.1]} 58. Rg1 {[%clk 0:00:12.5]} 58... Qd5+
{[%clk 0:00:05.9]} 0-1

[Event "*** SCC Grand Prix: Titled Tuesday Blitz"]
[Site "Chess.com"]
[Date "2020.09.29"]
[Round "4"]
[White "m_ezat"]
[Black "brunomorado"]
[Result "1-0"]
[WhiteElo "2621"]
[BlackElo "2387"]
[TimeControl "180+1"]
[EndTime "10:40:06 PDT"]
[Termination "m_ezat won on time"]

1. d4 {[%clk 0:03:00.9]} 1... d5 {[%clk 0:03:00]} 2. c4 {[%clk 0:03:01.2]} 2...
c6 {[%clk 0:03:00.5]} 3. Nc3 {[%clk 0:02:58.9]} 3... Nf6 {[%clk 0:03:00.7]} 4.
cxd5 {[%clk 0:02:59.2]} 4... cxd5 {[%clk 0:03:01.6]} 5. Bf4 {[%clk 0:02:59.2]}
5... Nc6 {[%clk 0:03:01.6]} 6. e3 {[%clk 0:02:57.5]} 6... a6 {[%clk 0:03:01.9]}
7. Bd3 {[%clk 0:02:57.2]} 7... Bg4 {[%clk 0:02:58]} 8. Nge2 {[%clk 0:02:57.6]}
8... e6 {[%clk 0:02:57.5]} 9. O-O {[%clk 0:02:56.9]} 9... Bd6 {[%clk 0:02:57.5]}
10. f3 {[%clk 0:02:57.3]} 10... Bh5 {[%clk 0:02:57.1]} 11. Bxd6 {[%clk
0:02:57.7]} 11... Qxd6 {[%clk 0:02:58]} 12. Nf4 {[%clk 0:02:57.7]} 12... Bg6
{[%clk 0:02:57.1]} 13. Rc1 {[%clk 0:02:58]} 13... O-O {[%clk 0:02:55.3]} 14. Na4
{[%clk 0:02:56.9]} 14... Bxd3 {[%clk 0:02:52.5]} 15. Nxd3 {[%clk 0:02:55.8]}
15... Nb4 {[%clk 0:02:50.9]} 16. Nxb4 {[%clk 0:02:48.5]} 16... Qxb4 {[%clk
0:02:51.8]} 17. a3 {[%clk 0:02:48.9]} 17... Qd6 {[%clk 0:02:50.1]} 18. Qb3
{[%clk 0:02:45]} 18... b5 {[%clk 0:02:48.4]} 19. Nc5 {[%clk 0:02:44.5]} 19...
Rfc8 {[%clk 0:02:46.6]} 20. Qb4 {[%clk 0:02:34.2]} 20... Nd7 {[%clk 0:02:33.1]}
21. Nd3 {[%clk 0:02:10.6]} 21... Qxb4 {[%clk 0:02:31.9]} 22. Nxb4 {[%clk
0:02:10.4]} 22... a5 {[%clk 0:02:27.3]} 23. Nc6 {[%clk 0:01:59.2]} 23... Kf8
{[%clk 0:02:19.3]} 24. Rc2 {[%clk 0:01:55.3]} 24... Nb6 {[%clk 0:02:16.4]} 25.
Rfc1 {[%clk 0:01:48.3]} 25... Nc4 {[%clk 0:02:12.6]} 26. Ne5 {[%clk 0:01:47.9]}
26... a4 {[%clk 0:01:49.8]} 27. Kf2 {[%clk 0:01:41.3]} 27... Ke7 {[%clk
0:01:46.3]} 28. e4 {[%clk 0:01:34]} 28... f6 {[%clk 0:01:35.2]} 29. Nd3 {[%clk
0:01:32.6]} 29... dxe4 {[%clk 0:01:24.8]} 30. fxe4 {[%clk 0:01:32]} 30... Nd6
{[%clk 0:01:25.3]} 31. Rc7+ {[%clk 0:01:28.9]} 31... Rxc7 {[%clk 0:01:21.8]} 32.
Rxc7+ {[%clk 0:01:27.7]} 32... Kd8 {[%clk 0:01:04.3]} 33. Rxg7 {[%clk
0:01:26.1]} 33... Nxe4+ {[%clk 0:01:03.1]} 34. Ke3 {[%clk 0:01:25.6]} 34... Nd6
{[%clk 0:01:02.4]} 35. Rxh7 {[%clk 0:01:24.5]} 35... Nf5+ {[%clk 0:00:49]} 36.
Ke4 {[%clk 0:01:19.7]} 36... Ra6 {[%clk 0:00:38.6]} 37. d5 {[%clk 0:00:46.7]}
37... Ne7 {[%clk 0:00:18.8]} 38. Nc5 {[%clk 0:00:35.5]} 38... exd5+ {[%clk
0:00:18.4]} 39. Kd4 {[%clk 0:00:35.1]} 39... Rc6 {[%clk 0:00:13.7]} 40. g4
{[%clk 0:00:33.9]} 40... Ke8 {[%clk 0:00:13]} 41. h4 {[%clk 0:00:32.9]} 41...
Kf8 {[%clk 0:00:13.2]} 42. h5 {[%clk 0:00:31.6]} 42... Rd6 {[%clk 0:00:10.4]}
43. Nd3 {[%clk 0:00:25.4]} 43... Re6 {[%clk 0:00:06.2]} 44. Kc5 {[%clk
0:00:20.2]} 44... Re4 {[%clk 0:00:05.2]} 45. Kd6 {[%clk 0:00:19]} 45... Ng8
{[%clk 0:00:04.1]} 46. Nc5 {[%clk 0:00:17.2]} 46... Rxg4 {[%clk 0:00:02.7]} 47.
Ne6+ {[%clk 0:00:13.6]} 47... Ke8 {[%clk 0:00:02.9]} 48. h6 {[%clk 0:00:10.7]}
48... d4 {[%clk 0:00:02.9]} 49. Rh8 {[%clk 0:00:08.9]} 49... Kf7 {[%clk
0:00:03.3]} 50. h7 {[%clk 0:00:08]} 50... d3 {[%clk 0:00:01.8]} 51. hxg8=Q+
{[%clk 0:00:05.9]} 51... Rxg8 {[%clk 0:00:02.7]} 52. Rh2 {[%clk 0:00:05.8]}
52... Re8 {[%clk 0:00:01.1]} 53. Nc5 {[%clk 0:00:04.4]} 1-0

[Event "*** SCC Grand Prix: Titled Tuesday Blitz"]
[Site "Chess.com"]
[Date "2020.09.29"]
[Round "4"]
[White "leoduarte"]
[Black "fabianvivasz"]
[Result "0-1"]
[WhiteElo "2293"]
[BlackElo "2444"]
[TimeControl "180+1"]
[EndTime "10:40:08 PDT"]
[Termination "fabianvivasz won on time"]

1. e4 {[%clk 0:03:00.9]} 1... e5 {[%clk 0:02:57.7]} 2. Nf3 {[%clk 0:03:00.2]}
2... Nc6 {[%clk 0:02:56.9]} 3. Bc4 {[%clk 0:03:00.6]} 3... Nf6 {[%clk
0:02:56.6]} 4. d3 {[%clk 0:03:00.1]} 4... Bc5 {[%clk 0:02:56.3]} 5. O-O {[%clk
0:03:00.4]} 5... O-O {[%clk 0:02:55.8]} 6. Bb3 {[%clk 0:02:57.8]} 6... d5 {[%clk
0:02:47.4]} 7. exd5 {[%clk 0:02:51.3]} 7... Nxd5 {[%clk 0:02:48.3]} 8. Re1
{[%clk 0:02:51.1]} 8... Bg4 {[%clk 0:02:46.6]} 9. Nbd2 {[%clk 0:02:24.3]} 9...
Nf4 {[%clk 0:01:47.9]} 10. Ne4 {[%clk 0:02:01.2]} 10... Bd6 {[%clk 0:01:44.3]}
11. h3 {[%clk 0:01:53]} 11... Bh5 {[%clk 0:01:26.6]} 12. Bxf4 {[%clk 0:01:43.1]}
12... exf4 {[%clk 0:01:24.5]} 13. Nxd6 {[%clk 0:01:08.8]} 13... Qxd6 {[%clk
0:01:22.1]} 14. c3 {[%clk 0:01:08.4]} 14... Ne5 {[%clk 0:00:55.9]} 15. Rxe5
{[%clk 0:00:56.7]} 15... Bxf3 {[%clk 0:00:55.4]} 16. Qe1 {[%clk 0:00:56.6]}
16... Qg6 {[%clk 0:00:51.1]} 17. Qf1 {[%clk 0:00:56.6]} 17... Rad8 {[%clk
0:00:38.7]} 18. d4 {[%clk 0:00:42.8]} 18... Kh8 {[%clk 0:00:34.3]} 19. Rae1
{[%clk 0:00:37.9]} 19... f6 {[%clk 0:00:30.1]} 20. Re7 {[%clk 0:00:35.9]} 20...
c5 {[%clk 0:00:20.6]} 21. Kh1 {[%clk 0:00:14.4]} 21... Bc6 {[%clk 0:00:18.2]}
22. dxc5 {[%clk 0:00:11.7]} 22... Qh5 {[%clk 0:00:16.5]} 23. f3 {[%clk
0:00:11.2]} 23... Qxc5 {[%clk 0:00:16]} 24. Qc4 {[%clk 0:00:10]} 24... Qxc4
{[%clk 0:00:13.8]} 25. Bxc4 {[%clk 0:00:10.9]} 25... Rd2 {[%clk 0:00:13.2]} 26.
R7e2 {[%clk 0:00:11.3]} 26... Rfd8 {[%clk 0:00:11.6]} 27. Rxd2 {[%clk
0:00:11.4]} 27... Rxd2 {[%clk 0:00:12.5]} 28. Re2 {[%clk 0:00:12]} 28... Rxe2
{[%clk 0:00:12]} 29. Bxe2 {[%clk 0:00:12.9]} 29... Kg8 {[%clk 0:00:12.6]} 30.
Kg1 {[%clk 0:00:13.3]} 30... Kf7 {[%clk 0:00:13.2]} 31. Kf2 {[%clk 0:00:13.6]}
31... Ke6 {[%clk 0:00:13.8]} 32. Bd3 {[%clk 0:00:14.2]} 32... h6 {[%clk
0:00:13.3]} 33. Ke2 {[%clk 0:00:12.7]} 33... Ke5 {[%clk 0:00:13.3]} 34. a3
{[%clk 0:00:11.8]} 34... g5 {[%clk 0:00:12.5]} 35. Kd2 {[%clk 0:00:11.3]} 35...
f5 {[%clk 0:00:12.5]} 36. Be2 {[%clk 0:00:11.2]} 36... h5 {[%clk 0:00:12.9]} 37.
Ke1 {[%clk 0:00:10.9]} 37... a5 {[%clk 0:00:11.3]} 38. Kf2 {[%clk 0:00:10.6]}
38... Kd5 {[%clk 0:00:10.1]} 39. Ke1 {[%clk 0:00:10.5]} 39... Kc5 {[%clk
0:00:10.5]} 40. b4+ {[%clk 0:00:10.6]} 40... axb4 {[%clk 0:00:09]} 41. axb4+
{[%clk 0:00:11.5]} 41... Kd5 {[%clk 0:00:07.5]} 42. Kf2 {[%clk 0:00:11.9]} 42...
Ke5 {[%clk 0:00:07.1]} 43. Ke1 {[%clk 0:00:12.2]} 43... Ba4 {[%clk 0:00:06.8]}
44. Kf2 {[%clk 0:00:12]} 44... Bb3 {[%clk 0:00:07.2]} 45. Ke1 {[%clk 0:00:11.9]}
45... Kd5 {[%clk 0:00:07.5]} 46. Kf2 {[%clk 0:00:11.4]} 46... Bc4 {[%clk
0:00:07.5]} 47. Bd1 {[%clk 0:00:11.5]} 47... b5 {[%clk 0:00:06.6]} 48. Bc2
{[%clk 0:00:10.9]} 48... Ke5 {[%clk 0:00:06.4]} 49. Bd1 {[%clk 0:00:11]} 49...
Bd3 {[%clk 0:00:06.7]} 50. Bb3 {[%clk 0:00:09.8]} 50... g4 {[%clk 0:00:06.8]}
51. Bf7 {[%clk 0:00:08.2]} 51... g3+ {[%clk 0:00:02.9]} 52. Ke1 {[%clk
0:00:05.5]} 52... h4 {[%clk 0:00:03.1]} 53. Bb3 {[%clk 0:00:05.5]} 53... Bc4
{[%clk 0:00:03.1]} 54. Bd1 {[%clk 0:00:05.5]} 54... Bd3 {[%clk 0:00:03.1]} 55.
Kd2 {[%clk 0:00:05.8]} 55... Bf1 {[%clk 0:00:02.2]} 56. Be2 {[%clk 0:00:04.8]}
56... Bxg2 {[%clk 0:00:02.7]} 57. Bxb5 {[%clk 0:00:04.9]} 57... Bxf3 {[%clk
0:00:03.2]} 58. Bf1 {[%clk 0:00:02.6]} 58... g2 {[%clk 0:00:03.5]} 59. Bxg2
{[%clk 0:00:02.4]} 59... Bxg2 {[%clk 0:00:04.4]} 0-1

[Event "*** SCC Grand Prix: Titled Tuesday Blitz"]
[Site "Chess.com"]
[Date "2020.09.29"]
[Round "4"]
[White "BAS8892"]
[Black "amiralfio"]
[Result "1-0"]
[WhiteElo "2672"]
[BlackElo "2462"]
[TimeControl "180+1"]
[EndTime "10:40:13 PDT"]
[Termination "BAS8892 won by resignation"]

1. d4 {[%clk 0:02:57.2]} 1... d5 {[%clk 0:02:53.3]} 2. Bf4 {[%clk 0:02:55.1]}
2... Nf6 {[%clk 0:02:38]} 3. e3 {[%clk 0:02:54.3]} 3... e6 {[%clk 0:02:23]} 4.
Nd2 {[%clk 0:02:52.9]} 4... Bd6 {[%clk 0:02:00.9]} 5. Bg3 {[%clk 0:02:52.5]}
5... O-O {[%clk 0:01:58.9]} 6. Bd3 {[%clk 0:02:50.7]} 6... c5 {[%clk 0:01:56.2]}
7. c3 {[%clk 0:02:50.1]} 7... Qc7 {[%clk 0:01:56.3]} 8. f4 {[%clk 0:02:48.1]}
8... Nc6 {[%clk 0:01:50.5]} 9. Ngf3 {[%clk 0:02:43.6]} 9... Ne7 {[%clk
0:01:47.1]} 10. Ne5 {[%clk 0:02:32.8]} 10... b6 {[%clk 0:01:44.4]} 11. Qe2
{[%clk 0:02:32]} 11... Bb7 {[%clk 0:01:43.5]} 12. O-O {[%clk 0:02:29.2]} 12...
Ne4 {[%clk 0:01:43.5]} 13. Nxe4 {[%clk 0:02:18.7]} 13... dxe4 {[%clk 0:01:43]}
14. Bc4 {[%clk 0:02:08.5]} 14... Bd5 {[%clk 0:01:34.7]} 15. Ba6 {[%clk
0:02:05.7]} 15... Bb7 {[%clk 0:01:10.4]} 16. Bc4 {[%clk 0:01:50.2]} 16... a6
{[%clk 0:01:10]} 17. a4 {[%clk 0:01:49.1]} 17... Rac8 {[%clk 0:01:09.8]} 18.
Bxa6 {[%clk 0:01:42.8]} 18... f6 {[%clk 0:01:08.7]} 19. Bxb7 {[%clk 0:01:39.1]}
19... Qxb7 {[%clk 0:01:07.7]} 20. Nc4 {[%clk 0:01:37.4]} 20... Bb8 {[%clk
0:01:05.1]} 21. a5 {[%clk 0:01:34.1]} 21... cxd4 {[%clk 0:00:56.3]} 22. exd4
{[%clk 0:01:31.4]} 22... Qa6 {[%clk 0:00:41.3]} 23. b3 {[%clk 0:01:30.9]} 23...
b5 {[%clk 0:00:41.2]} 24. Nb6 {[%clk 0:01:29.6]} 24... Rxc3 {[%clk 0:00:41.2]}
25. Qxe4 {[%clk 0:01:27.9]} 25... Kh8 {[%clk 0:00:36.1]} 26. Qxe6 {[%clk
0:01:26.6]} 26... Nc6 {[%clk 0:00:26.9]} 27. d5 {[%clk 0:01:17.8]} 27... Nd4
{[%clk 0:00:20.5]} 28. Qe7 {[%clk 0:01:12.3]} 28... Rg8 {[%clk 0:00:20.5]} 29.
b4 {[%clk 0:01:01]} 29... Nf5 {[%clk 0:00:19.9]} 30. Qe6 {[%clk 0:00:53.1]}
30... Nxg3 {[%clk 0:00:16.7]} 31. hxg3 {[%clk 0:00:52.8]} 31... Rxg3 {[%clk
0:00:17.3]} 32. d6 {[%clk 0:00:51.4]} 32... Qb7 {[%clk 0:00:15.5]} 33. Rf2
{[%clk 0:00:47.7]} 33... Rd3 {[%clk 0:00:14.5]} 34. d7 {[%clk 0:00:42.8]} 34...
Ba7 {[%clk 0:00:08]} 35. Re1 {[%clk 0:00:28.4]} 35... h6 {[%clk 0:00:03.8]} 36.
Qf5 {[%clk 0:00:21.9]} 36... Rd6 {[%clk 0:00:02.8]} 37. Qxb5 {[%clk 0:00:19.5]}
37... Bxb6 {[%clk 0:00:02.6]} 38. axb6 {[%clk 0:00:18.8]} 38... Qxd7 {[%clk
0:00:01.9]} 39. Qxd7 {[%clk 0:00:16.8]} 39... Rxd7 {[%clk 0:00:02.8]} 40. Re6
{[%clk 0:00:16]} 40... Rb8 {[%clk 0:00:01.5]} 41. Rc2 {[%clk 0:00:15]} 41... Rd4
{[%clk 0:00:01.7]} 42. b5 {[%clk 0:00:14.1]} 42... Rd5 {[%clk 0:00:01.7]} 43.
Rb2 {[%clk 0:00:13.4]} 43... Rb7 {[%clk 0:00:02]} 44. Rc6 {[%clk 0:00:12.8]}
44... Kh7 {[%clk 0:00:01.9]} 45. Kf2 {[%clk 0:00:13]} 45... Rd4 {[%clk
0:00:02.3]} 46. Ke3 {[%clk 0:00:12.9]} 46... Rd5 {[%clk 0:00:02.1]} 47. Ke4
{[%clk 0:00:12.9]} 47... Rdd7 {[%clk 0:00:02.4]} 48. Rc7 {[%clk 0:00:11.5]}
48... Rdxc7 {[%clk 0:00:01.8]} 49. bxc7 {[%clk 0:00:11.5]} 49... Rxc7 {[%clk
0:00:02.7]} 50. b6 {[%clk 0:00:11.9]} 50... Rb7 {[%clk 0:00:03.2]} 51. Kd5
{[%clk 0:00:12.3]} 51... Kg6 {[%clk 0:00:03.7]} 52. Kc6 {[%clk 0:00:12.6]} 52...
Rb8 {[%clk 0:00:04.3]} 53. g4 {[%clk 0:00:12.5]} 53... h5 {[%clk 0:00:03.9]} 54.
gxh5+ {[%clk 0:00:11.7]} 54... Kxh5 {[%clk 0:00:04.8]} 55. f5 {[%clk 0:00:09.5]}
55... Kg5 {[%clk 0:00:04.6]} 56. Kc7 {[%clk 0:00:06.7]} 56... Rf8 {[%clk
0:00:03.9]} 57. Rb5 {[%clk 0:00:04.2]} 57... g6 {[%clk 0:00:04]} 58. fxg6+
{[%clk 0:00:04.1]} 58... Kxg6 {[%clk 0:00:04.9]} 59. b7 {[%clk 0:00:04.6]} 59...
f5 {[%clk 0:00:04.5]} 60. Rd5 {[%clk 0:00:04.4]} 60... Rf7+ {[%clk 0:00:03.5]}
61. Rd7 {[%clk 0:00:04.3]} 1-0

[Event "*** SCC Grand Prix: Titled Tuesday Blitz"]
[Site "Chess.com"]
[Date "2020.09.29"]
[Round "4"]
[White "GelmanAlexander"]
[Black "Anton_Demchenko"]
[Result "1/2-1/2"]
[WhiteElo "2539"]
[BlackElo "2817"]
[TimeControl "180+1"]
[EndTime "10:40:14 PDT"]
[Termination "Game drawn by repetition"]

1. d4 {[%clk 0:03:00.9]} 1... Nf6 {[%clk 0:02:59.3]} 2. Nc3 {[%clk 0:03:01.1]}
2... d5 {[%clk 0:02:59.1]} 3. Bf4 {[%clk 0:03:01.3]} 3... c5 {[%clk 0:02:59.5]}
4. e3 {[%clk 0:03:01.2]} 4... cxd4 {[%clk 0:02:59.9]} 5. exd4 {[%clk 0:03:01.4]}
5... a6 {[%clk 0:03:00.3]} 6. Nf3 {[%clk 0:03:01.7]} 6... Nc6 {[%clk 0:03:00.8]}
7. Ne5 {[%clk 0:03:01.8]} 7... Bd7 {[%clk 0:03:01.4]} 8. Qd3 {[%clk 0:02:53.5]}
8... Rc8 {[%clk 0:02:50.2]} 9. Be2 {[%clk 0:02:51.5]} 9... e6 {[%clk 0:02:48]}
10. O-O {[%clk 0:02:50.7]} 10... Nxe5 {[%clk 0:02:35.9]} 11. dxe5 {[%clk
0:02:33.3]} 11... Ng8 {[%clk 0:02:36]} 12. Rad1 {[%clk 0:02:29.9]} 12... Ne7
{[%clk 0:02:28.1]} 13. h4 {[%clk 0:02:15.7]} 13... Ng6 {[%clk 0:02:15.8]} 14.
Bg5 {[%clk 0:02:07]} 14... Be7 {[%clk 0:02:15.5]} 15. f4 {[%clk 0:02:07.1]}
15... Qb6+ {[%clk 0:01:31.9]} 16. Kh1 {[%clk 0:02:03.8]} 16... Bxg5 {[%clk
0:01:31]} 17. fxg5 {[%clk 0:01:36.2]} 17... Nxh4 {[%clk 0:00:42.8]} 18. Bh5
{[%clk 0:00:58.8]} 18... O-O {[%clk 0:00:29.7]} 19. Qh3 {[%clk 0:00:54.3]} 19...
Nf5 {[%clk 0:00:24.4]} 20. Bg4 {[%clk 0:00:45.5]} 20... Ne3 {[%clk 0:00:17.5]}
21. Nxd5 {[%clk 0:00:28.8]} 21... Nxd5 {[%clk 0:00:15.1]} 22. Rxd5 {[%clk
0:00:29]} 22... exd5 {[%clk 0:00:11.1]} 23. Bxd7 {[%clk 0:00:29.9]} 23... Rcd8
{[%clk 0:00:05.9]} 24. e6 {[%clk 0:00:27.8]} 24... fxe6 {[%clk 0:00:06.8]} 25.
Bxe6+ {[%clk 0:00:27.4]} 25... Kh8 {[%clk 0:00:07.4]} 26. Rd1 {[%clk 0:00:23.6]}
26... d4 {[%clk 0:00:06]} 27. g6 {[%clk 0:00:22.5]} 27... h6 {[%clk 0:00:06.1]}
28. Bf7 {[%clk 0:00:23]} 28... Qf6 {[%clk 0:00:05.8]} 29. Qg4 {[%clk 0:00:20.8]}
29... Rd6 {[%clk 0:00:05.1]} 30. Rd3 {[%clk 0:00:20.3]} 30... Rc6 {[%clk
0:00:04.5]} 31. Rf3 {[%clk 0:00:20]} 31... Qe5 {[%clk 0:00:03.9]} 32. Rf5 {[%clk
0:00:20.2]} 32... Qe1+ {[%clk 0:00:03.4]} 33. Kh2 {[%clk 0:00:20.7]} 33... Qe7
{[%clk 0:00:03.6]} 34. Qxd4 {[%clk 0:00:19.8]} 34... Qc7+ {[%clk 0:00:04]} 35.
Kh3 {[%clk 0:00:18.2]} 35... Rxc2 {[%clk 0:00:04.2]} 36. Rd5 {[%clk 0:00:16.7]}
36... Qc8+ {[%clk 0:00:03.4]} 37. g4 {[%clk 0:00:14.9]} 37... Rc1 {[%clk
0:00:03.9]} 38. Rd7 {[%clk 0:00:14]} 38... Qc2 {[%clk 0:00:03.9]} 39. Rd8 {[%clk
0:00:14.4]} 39... Rh1+ {[%clk 0:00:03.9]} 40. Kg3 {[%clk 0:00:15]} 40... Qh2+
{[%clk 0:00:04.2]} 41. Kf3 {[%clk 0:00:15.6]} 41... Rf1+ {[%clk 0:00:04.6]} 42.
Ke4 {[%clk 0:00:15.7]} 42... Qg2+ {[%clk 0:00:04.5]} 43. Ke5 {[%clk 0:00:15]}
43... Re1+ {[%clk 0:00:04.6]} 44. Kf5 {[%clk 0:00:12.4]} 44... Rf1+ {[%clk
0:00:04.9]} 45. Ke6 {[%clk 0:00:12.4]} 45... Qe2+ {[%clk 0:00:05]} 46. Kd7
{[%clk 0:00:12.7]} 46... Rxd8+ {[%clk 0:00:04.7]} 47. Kxd8 {[%clk 0:00:13.6]}
47... Re1 {[%clk 0:00:04.8]} 48. Qd6 {[%clk 0:00:11.4]} 48... Rd1 {[%clk
0:00:03.6]} 49. Bd5 {[%clk 0:00:11.7]} 49... Qf2 {[%clk 0:00:03.5]} 50. Kc7
{[%clk 0:00:08.6]} 50... Qf6 {[%clk 0:00:02.6]} 51. Qd7 {[%clk 0:00:07.9]} 51...
Qf8 {[%clk 0:00:02.7]} 52. Kxb7 {[%clk 0:00:07.1]} 52... Rc1 {[%clk 0:00:02.9]}
53. Kxa6 {[%clk 0:00:07]} 53... Rb1 {[%clk 0:00:02.8]} 54. b3 {[%clk 0:00:06.7]}
54... Rd1 {[%clk 0:00:03.1]} 55. a4 {[%clk 0:00:06.8]} 55... Qb8 {[%clk
0:00:03.2]} 56. Qf7 {[%clk 0:00:06.3]} 56... Rc1 {[%clk 0:00:03.1]} 57. Bc4
{[%clk 0:00:05.7]} 57... Re1 {[%clk 0:00:03.1]} 58. a5 {[%clk 0:00:04.9]} 58...
Re8 {[%clk 0:00:03.3]} 59. Qd7 {[%clk 0:00:04.4]} 59... Rd8 {[%clk 0:00:03.6]}
60. Qc6 {[%clk 0:00:04.6]} 60... Rd6 {[%clk 0:00:03.9]} 61. Qb6 {[%clk
0:00:04.3]} 61... Rxb6+ {[%clk 0:00:03.9]} 62. axb6 {[%clk 0:00:05.2]} 62...
Qa8+ {[%clk 0:00:03.7]} 63. Kb5 {[%clk 0:00:05.3]} 63... Qb7 {[%clk 0:00:04.6]}
64. Ka5 {[%clk 0:00:05.6]} 64... Qa8+ {[%clk 0:00:03.8]} 65. Kb5 {[%clk
0:00:05.4]} 65... Qb7 {[%clk 0:00:04.5]} 66. Ka5 {[%clk 0:00:05.9]} 66... Qc6
{[%clk 0:00:05.1]} 67. Ka6 {[%clk 0:00:06]} 67... Qa8+ {[%clk 0:00:04.9]} 68.
Kb5 {[%clk 0:00:06.2]} 1/2-1/2